bitfinex-derivatives/quotes_ETHF0:USTF0_20250727
["timestamp","ask_amount","ask_price","bid_price","bid_amount"]
[1753646995340,24.57917468,3839.4,3839.3,1.7295]
[1753647001251,0.52078,3839.2,3839.1,0.4529]
[1753647001449,23.80068,3839.2,3839.1,1.0017]
[1753647001637,23.80068,3839.2,3839.1,1.6782]
[1753647002741,2.93668,3839.2,3839.1,1.6782]
[1753647002941,23.80168,3839.2,3839.1,1.6782]
[1753647004244,2.93668,3839.2,3839.1,1.6782]
[1753647004444,23.80068,3839.2,3839.1,1.6782]
[1753647005047,21.38478,3839.2,3839.1,2.19899]
[1753647005645,21.38478,3839.2,3839.1,1.6782]
[1753647005844,21.84258,3839.2,3839.1,1.6782]
[1753647006042,22.13238,3839.2,3839.1,2.19899]
[1753647006444,22.13238,3839.2,3839.1,1.6782]
[1753647006845,22.41288,3839.2,3839.1,1.6782]
[1753647007246,23.41668,3839.2,3839.1,1.6782]
[1753647007648,23.80168,3839.2,3839.1,1.6782]
[1753647007849,2.93671,3839.0,3838.9,1.6782]
[1753647008048,23.80071,3839.0,3838.9,1.6782]
[1753647008954,23.80071,3839.0,3838.9,2.19902]
[1753647009247,0.4578,3839.3,3839.2,0.5488]
[1753647009450,21.38478,3839.3,3839.2,2.19897]
[1753647009647,21.38477,3839.3,3839.2,2.19897]
[1753647009948,0.4578,3839.3,3839.2,2.19898]
[1753647010249,3.2078,3840.0,3839.8,1.2253]
[1753647010445,38.23842468,3840.6,3840.0,1.0017]
[1753647010662,0.52063,3840.4,3840.3,1.19712]
[1753647010850,1.45630895,3840.4,3840.3,2.19882]
[1753647011147,0.76278795,3840.4,3840.3,2.19882]
[1753647011356,0.76278795,3840.4,3840.3,1.6782]
[1753647011652,22.37338795,3840.4,3840.3,2.19883]
[1753647012154,22.37338795,3840.4,3840.3,1.6782]
[1753647012355,22.37338795,3840.4,3840.3,2.19883]
[1753647012547,22.37338795,3840.4,3840.3,1.6782]
[1753647013053,22.37338795,3840.4,3840.3,2.19883]
[1753647014857,0.8699,3841.3,3840.8,1.19706]
[1753647015155,24.76057622,3840.9,3840.8,2.19876]
[1753647015453,24.58735,3840.9,3840.8,2.19876]
[1753647015846,25.61445,3840.9,3840.8,1.6782]
[1753647016048,6.14425,3840.9,3840.8,1.6782]
[1753647016248,23.79545,3840.9,3840.8,1.6782]
[1753647016557,2.4159,3840.9,3840.8,2.19876]
[1753647016753,22.6832,3840.9,3840.8,2.19876]
[1753647016950,0.52054,3841.0,3840.6,3.2078]
[1753647017151,20.859,3840.9,3840.8,2.19876]
[1753647017752,5.6237,3841.5,3841.4,1.6782]
[1753647017951,0.69333125,3841.5,3841.4,2.19868]
[1753647018159,37.513,3841.8,3841.0,4.50914]
[1753647018160,38.3829,3841.8,3841.7,2.19864]
[1753647018355,59.93190764,3841.8,3841.7,2.19864]
[1753647018854,0.2,3841.9,3841.8,2.19863]
[1753647019053,21.85591,3841.9,3841.8,1.6782]
[1753647019258,23.99231,3841.9,3841.8,1.6782]
[1753647019755,21.57641,3841.9,3841.8,2.19863]
[1753647020659,21.056,3841.9,3841.8,5.40643]
[1753647020861,0.2,3841.9,3841.8,5.40643]
[1753647021061,1.25576468,3842.5,3842.4,1.2253]
[1753647021362,1.1597,3842.7,3842.5,0.5488]
[1753647021554,1.95951,3842.7,3842.6,1.6782]
[1753647022151,22.81251,3842.7,3842.6,1.6782]
[1753647022459,21.8344,3842.7,3842.6,2.19852]
[1753647022662,23.78921,3842.7,3842.6,1.6782]
[1753647022865,2.93626,3842.3,3842.2,4.4331]
[1753647023160,23.78926,3842.3,3842.2,4.4331]
[1753647023363,23.2689,3842.3,3842.2,5.40637]
[1753647023565,23.2689,3842.3,3842.2,2.19857]
[1753647023754,23.19756,3842.3,3842.2,1.6782]
[1753647024154,23.78926,3842.3,3842.2,1.6782]
[1753647025261,23.78926,3842.3,3842.2,2.19857]
[1753647025460,23.78926,3842.3,3842.2,1.2253]
[1753647025853,2.9363,3842.0,3841.9,1.2253]
[1753647026057,24.52072468,3842.0,3841.9,1.74571]
[1753647026257,24.52072468,3842.0,3841.9,1.2253]
[1753647027466,24.52072468,3842.0,3841.9,0.9404]
[1753647028364,23.7843,3842.0,3841.9,1.74571]
[1753647028564,23.1926,3842.0,3841.9,2.19701]
[1753647028963,1.8242,3842.0,3841.9,2.19701]
[1753647029164,0.4261,3842.2,3842.1,0.52039]
[1753647029365,20.848,3842.2,3842.1,2.23889]
[1753647029767,1.0165,3842.7,3842.6,0.6796]
[1753647030065,21.8645,3842.7,3842.6,0.6796]
[1753647030262,1.53681,3842.7,3842.6,1.19991]
[1753647030466,37.509,3843.0,3842.9,1.0389]
[1753647030669,20.863,3843.0,3842.9,2.23878]
[1753647031262,21.2891,3843.0,3842.9,2.23878]
[1753647032071,20.863,3843.0,3842.9,2.23878]
[1753647033179,22.3051,3843.0,3842.9,2.23878]
[1753647035269,22.3081,3843.0,3842.9,2.23878]
[1753647035872,22.82837,3843.0,3842.9,2.23878]
[1753647036275,22.6813,3843.0,3842.9,2.23878]
[1753647036471,23.2283,3843.0,3842.9,2.23878]
[1753647036671,23.74857,3843.0,3842.9,0.9853]
[1753647036974,23.74857,3843.0,3842.9,0.3977]
[1753647037276,2.88261,3842.7,3842.6,0.9853]
[1753647037477,24.48203468,3842.7,3842.6,0.9853]
[1753647037673,0.52033,3842.5,3842.4,3.6055]
[1753647037880,23.74963,3842.5,3842.4,0.9853]
[1753647038079,23.74963,3842.5,3842.4,1.2672]
[1753647038275,1.48399,3842.1,3842.0,4.475]
[1753647038481,1.8153,3842.1,3842.0,5.4467]
[1753647038782,2.33569,3842.1,3842.0,5.4467]
[1753647039281,2.3623,3842.1,3842.0,5.4467]
[1753647039476,2.88269,3842.1,3842.0,5.4467]
[1753647039682,2.88269,3842.1,3842.0,4.475]
[1753647040179,2.88269,3842.1,3842.0,3.6055]
[1753647040687,2.88269,3842.1,3842.0,4.1931]
[1753647041000,2.88269,3842.1,3842.0,4.475]
[1753647041385,2.88269,3842.1,3842.0,1.2672]
[1753647044092,23.74769,3842.1,3842.0,1.2672]
[1753647045294,1.74519,3842.9,3842.8,2.23878]
[1753647045494,3.02934333,3842.9,3842.8,1.7185]
[1753647045796,3.57634333,3842.9,3842.8,1.7185]
[1753647045998,3.57634333,3842.9,3842.8,2.23879]
[1753647046695,3.02934333,3842.9,3842.8,2.23879]
[1753647047290,3.57634333,3842.9,3842.8,2.23879]
[1753647047491,3.57634333,3842.9,3842.8,1.7185]
[1753647047692,3.57634333,3842.9,3842.8,2.23879]
[1753647050101,3.57634333,3842.9,3842.8,1.7185]
[1753647050393,3.57634333,3842.9,3842.8,1.2672]
[1753647051601,24.43634333,3842.9,3842.8,1.2672]
[1753647053093,24.43634333,3842.9,3842.8,1.78749]
[1753647053294,24.43634333,3842.9,3842.8,2.23879]
[1753647053896,24.43634333,3842.9,3842.8,1.7185]
[1753647055001,24.43634333,3842.9,3842.8,2.23879]
[1753647058698,23.91605333,3842.9,3842.8,2.23879]
[1753647058892,21.96285333,3842.9,3842.8,2.23879]
[1753647059092,21.53675333,3842.9,3842.8,2.23879]
[1753647059301,0.69375333,3842.9,3842.8,2.23879]
[1753647061403,2.13405333,3842.9,3842.8,2.23879]
[1753647062195,1.4403,3842.9,3842.8,2.23879]
[1753647063202,1.1609,3842.9,3842.8,2.23879]
[1753647063402,0.4317,3842.9,3842.8,2.23879]
[1753647067005,1.4403,3842.9,3842.8,2.23879]
[1753647069210,2.3941,3842.9,3842.8,2.23879]
[1753647069606,1.8068,3842.9,3842.8,2.23879]
[1753647071012,2.3941,3842.9,3842.8,2.23879]
[1753647072912,2.4121,3843.3,3843.2,2.12924]
[1753647073105,2.4121,3843.3,3843.2,5.33704]
[1753647073506,2.4121,3843.3,3843.2,4.93084]
[1753647074608,0.8553,3843.6,3843.5,1.1815]
[1753647074815,0.8553,3843.6,3843.5,2.1292]
[1753647075612,1.4403,3843.6,3843.5,2.1292]
[1753647076212,2.0276,3843.6,3843.5,2.1292]
[1753647078313,2.3941,3843.6,3843.5,2.1292]
[1753647082415,2.3941,3843.6,3843.5,1.723]
[1753647083106,0.2794,3843.3,3843.2,4.50839]
[1753647083311,2.3941,3843.3,3843.2,4.93084]
[1753647083512,2.3941,3843.3,3843.2,5.33704]
[1753647085916,2.3941,3843.3,3843.2,4.93084]
[1753647086218,3.12952468,3843.3,3843.2,3.72804]
[1753647086613,3.64975468,3843.3,3843.2,3.72804]
[1753647087713,3.12952468,3843.3,3843.2,4.28234]
[1753647087914,0.428,3843.7,3843.5,1.30048]
[1753647088114,0.5831,3843.7,3843.6,1.16348]
[1753647088318,1.5291,3843.7,3843.6,1.71778]
[1753647088512,2.89547,3843.7,3843.6,1.71778]
[1753647088815,2.89547,3843.7,3843.6,0.52018]
[1753647089015,2.89547,3843.7,3843.6,1.07448]
[1753647089216,2.3753,3843.7,3843.6,1.07448]
[1753647089417,2.3753,3843.7,3843.6,4.92558]
[1753647091521,2.89547,3843.7,3843.6,4.92558]
[1753647091715,2.89547,3843.7,3843.6,3.72798]
[1753647092221,2.3753,3843.7,3843.6,5.32958]
[1753647092417,1.7982,3843.7,3843.6,5.32958]
[1753647093916,0.4182,3843.7,3843.6,5.32958]
[1753647094524,0.6182,3843.9,3843.8,2.12176]
[1753647094818,0.2,3843.9,3843.8,2.12176]
[1753647095921,0.00705616,3843.9,3843.8,2.12176]
[1753647097321,0.428,3844.5,3844.4,0.52008]
[1753647097621,1.4293,3844.8,3844.7,0.52004]
[1753647097925,3.28956422,3844.8,3844.7,1.71764]
[1753647098223,2.59493237,3844.8,3844.7,1.71764]
[1753647098624,2.59492584,3844.8,3844.7,2.12164]
[1753647099119,2.3753,3844.8,3844.7,1.07434]
[1753647099315,2.47716,3844.5,3844.4,3.2078]
[1753647099514,2.3753,3844.5,3844.4,3.72788]
[1753647099719,2.93107452,3844.5,3844.4,4.64278]
[1753647099915,2.93107452,3844.5,3844.4,3.72788]
[1753647100625,0.952,3844.0,3843.9,1.43504]
[1753647100825,2.3753,3844.0,3843.9,1.43504]
[1753647101019,2.89543,3844.0,3843.9,1.43504]
[1753647101621,2.89543,3844.0,3843.9,0.3606]
[1753647101820,1.47214,3843.9,3843.8,3.72795]
[1753647102016,2.89544,3843.9,3843.8,4.64285]
[1753647102217,2.89544,3843.9,3843.8,5.35715]
[1753647102625,2.3753,3843.9,3843.8,5.64125]
[1753647102825,2.41101452,3843.9,3843.8,5.64125]
[1753647103822,2.93115452,3843.9,3843.8,5.64125]
[1753647104523,2.41101452,3843.9,3843.8,5.64125]
[1753647104923,2.93115452,3843.9,3843.8,5.64125]
[1753647106329,0.03571452,3843.9,3843.8,6.04525]
[1753647107631,1.03701452,3843.9,3843.8,6.04525]
[1753647107827,1.46501452,3843.9,3843.8,6.04525]
[1753647110428,2.04211452,3843.9,3843.8,6.04525]
[1753647113837,2.41101452,3843.9,3843.8,6.04525]
[1753647114036,0.03571452,3843.9,3843.8,6.04525]
[1753647114336,0.45391452,3843.9,3843.8,6.04525]
[1753647114539,0.74311452,3843.9,3843.8,6.04525]
[1753647115630,1.17111452,3843.9,3843.8,6.04525]
[1753647115826,1.46501452,3843.9,3843.8,6.04525]
[1753647116032,2.41101452,3843.9,3843.8,6.04525]
[1753647120636,2.41101452,3843.9,3843.8,3.72795]
[1753647120832,2.93115452,3843.9,3843.8,3.72795]
[1753647121037,2.93115452,3843.9,3843.8,3.2078]
[1753647121232,1.17437,3843.7,3843.6,0.52018]
[1753647121436,2.83307,3843.7,3843.6,0.52018]
[1753647121736,2.86878452,3843.7,3843.6,0.52018]
[1753647122939,2.86878452,3843.7,3843.6,1.06658]
[1753647123241,2.34861452,3843.7,3843.6,1.06658]
[1753647123434,2.86878452,3843.7,3843.6,0.52018]
[1753647123634,2.86878452,3843.7,3843.6,1.06658]
[1753647124943,2.34861452,3843.7,3843.6,1.06658]
[1753647125144,2.86878452,3843.7,3843.6,1.06658]
[1753647125333,2.34861452,3843.7,3843.6,1.06658]
[1753647126433,2.86878452,3843.7,3843.6,1.06658]
[1753647127241,2.86878452,3843.7,3843.6,0.52018]
[1753647127443,1.44031,3843.5,3843.4,0.52019]
[1753647127637,0.03571452,3843.7,3843.3,3.7542]
[1753647127638,0.52021,3843.4,3843.3,3.72801]
[1753647127844,1.47602452,3843.4,3843.3,3.72801]
[1753647128041,2.86882452,3843.4,3843.3,3.72801]
[1753647129243,1.69441452,3843.4,3843.0,0.5464]
[1753647129542,2.3129,3843.1,3843.0,0.52026]
[1753647129742,2.83317,3843.1,3843.0,1.44306]
[1753647129943,2.86888452,3843.1,3843.0,1.44306]
[1753647130148,2.86888452,3843.1,3843.0,0.52026]
[1753647130948,2.34861452,3843.1,3843.0,1.06666]
[1753647131142,0.43481452,3843.1,3843.0,2.87166]
[1753647132340,0.03571452,3843.1,3843.0,2.87166]
[1753647133141,4.52e-06,3843.1,3843.0,2.87166]
[1753647133345,2.3129,3844.4,3844.3,1.61279]
[1753647133546,3.00750288,3844.4,3844.3,2.15919]
[1753647133945,3.52758288,3844.4,3844.3,2.15919]
[1753647134145,3.52758288,3844.4,3844.3,1.44289]
[1753647134545,3.52758288,3844.4,3844.3,0.89649]
[1753647136451,3.52758288,3844.4,3844.3,1.44289]
[1753647137554,3.52758288,3844.4,3844.3,0.52009]
[1753647137752,1.44022,3844.2,3844.1,0.52011]
[1753647137954,3.52762288,3844.2,3844.1,0.52011]
[1753647138157,2.83302,3844.2,3844.1,0.52011]
[1753647139649,0.9201,3844.1,3843.7,0.5464]
[1753647139848,2.43622468,3843.9,3843.6,3.2078]
[1753647140150,1.44029,3843.7,3843.6,0.52018]
[1753647140549,1.44028,3843.7,3843.5,3.2078]
[1753647140747,2.03581468,3843.9,3843.5,3.2078]
[1753647140748,2.83308,3843.6,3843.5,4.27439]
[1753647141149,2.83308,3843.6,3843.5,3.72799]
[1753647142463,2.83308,3843.6,3843.5,4.27439]
[1753647143459,0.308,3843.2,3843.1,0.9228]
[1753647143665,1.9138,3843.2,3843.1,0.9228]
[1753647143968,2.83314,3843.2,3843.1,1.44305]
[1753647144455,2.3129,3843.2,3843.1,1.44305]
[1753647144860,2.3129,3843.2,3843.1,2.45155]
[1753647145263,1.4025,3843.2,3843.1,2.87165]
[1753647145962,1.9667,3843.2,3843.1,2.87165]
[1753647146159,2.3129,3843.2,3843.1,2.87165]
[1753647150569,1.3942,3843.5,3843.4,2.85291]
[1753647150868,1.3942,3843.5,3843.4,6.06071]
[1753647151457,0.5161,3843.6,3843.4,6.06071]
[1753647151458,0.8477,3843.8,3843.7,1.44147]
[1753647151662,1.3942,3843.8,3843.7,2.85287]
[1753647152268,1.9103,3843.8,3843.7,2.85287]
[1753647154370,2.2572,3843.8,3843.7,2.85287]
[1753647159376,2.2572,3843.8,3843.7,2.43777]
[1753647160982,2.2572,3843.8,3843.7,1.43427]
[1753647161477,2.2572,3843.8,3843.7,1.87027]
[1753647161882,2.2572,3843.8,3843.7,2.15077]
[1753647164172,2.2572,3843.8,3843.7,2.43777]
[1753647166975,2.2572,3843.8,3843.7,1.43427]
[1753647167483,2.2572,3843.8,3843.7,2.43777]
[1753647173182,2.2572,3843.8,3843.7,1.43427]
[1753647173982,2.2572,3843.8,3843.7,1.87027]
[1753647174182,2.2572,3843.8,3843.7,2.15077]
[1753647174686,2.2572,3843.8,3843.7,2.43777]
[1753647180584,0.4477,3844.2,3844.1,1.15322]
[1753647180791,1.55520718,3844.2,3844.1,6.00182]
[1753647181189,2.33190718,3844.2,3844.1,6.00182]
[1753647181491,3.50760718,3844.2,3844.1,6.00182]
[1753647181793,3.50760718,3844.2,3844.1,5.61312]
[1753647182285,2.2921,3843.4,3843.3,0.52021]
[1753647182492,0.8921,3843.1,3843.0,0.87637]
[1753647182680,0.8921,3843.1,3843.0,1.57267]
[1753647182884,0.8921,3843.1,3843.0,1.86177]
[1753647183087,2.2921,3843.1,3843.0,2.40547]
[1753647183288,2.81235,3843.1,3843.0,2.40547]
[1753647183794,2.81235,3843.1,3843.0,0.8998]
[1753647184795,2.81235,3843.1,3843.0,1.42007]
[1753647184991,2.81235,3843.1,3843.0,2.11637]
[1753647185189,2.81235,3843.1,3843.0,2.40547]
[1753647186293,2.81235,3843.1,3843.0,1.8852]
[1753647187496,2.81235,3843.1,3843.0,1.5961]
[1753647187890,0.52029,3842.8,3842.7,0.5437]
[1753647188096,2.81239,3842.8,3842.7,0.5437]
[1753647189095,2.81239,3842.8,3842.7,2.40551]
[1753647189997,2.81239,3842.8,3842.7,2.79421]
[1753647190705,2.81239,3842.8,3842.7,2.40551]
[1753647190894,2.2921,3842.8,3842.4,3.5965]
[1753647191199,2.2921,3842.5,3842.4,4.5493]
[1753647191392,1.88,3842.5,3842.4,4.938]
[1753647191599,2.2921,3842.5,3842.4,5.4817]
[1753647191798,2.2921,3842.5,3842.4,6.00205]
[1753647192495,2.81243,3842.5,3842.4,6.00205]
[1753647192694,2.2921,3842.5,3842.4,6.00205]
[1753647192891,2.81243,3842.5,3842.4,6.00205]
[1753647193099,2.2921,3842.5,3842.4,6.00205]
[1753647193298,2.81243,3842.5,3842.4,6.00205]
[1753647194203,2.81243,3842.5,3842.4,2.79425]
[1753647194405,2.2921,3842.5,3842.4,6.00205]
[1753647194900,2.81243,3842.5,3842.4,6.00205]
[1753647197202,2.81243,3842.5,3842.4,2.79425]
[1753647198504,2.81243,3842.5,3842.4,6.00205]
[1753647198701,2.81243,3842.5,3842.4,1.8852]
[1753647198902,1.41249,3842.2,3842.1,2.40557]
[1753647199102,2.14791468,3842.2,3842.1,2.40557]
[1753647199497,3.54791468,3842.2,3842.1,1.8852]
[1753647200607,2.5239,3842.0,3841.9,0.8998]
[1753647200805,2.8125,3842.0,3841.9,0.8998]
[1753647201200,2.8125,3842.0,3841.9,1.3191]
[1753647204207,2.8125,3842.0,3841.9,0.8998]
[1753647204600,1.41251,3841.9,3841.8,0.19261554]
[1753647204805,2.81251,3841.9,3841.8,1.61284554]
[1753647205001,2.81251,3841.9,3841.8,5.23994554]
[1753647205310,2.81251,3841.9,3841.8,5.51694554]
[1753647206914,2.81251,3841.9,3841.8,2.30914554]
[1753647207208,2.81251,3841.9,3841.8,0.19261554]
[1753647209705,2.81251,3841.9,3841.8,0.72351554]
[1753647212015,0.9506,3842.2,3841.8,6.20244554]
[1753647212306,0.52028,3843.0,3842.9,0.52027]
[1753647212506,0.6255,3843.0,3842.9,2.80187]
[1753647212914,2.16159468,3843.0,3842.9,2.80188]
[1753647213111,3.47209468,3843.0,3842.9,2.80188]
[1753647213506,2.95182468,3843.0,3842.9,2.80188]
[1753647213907,2.58289468,3843.0,3842.9,2.80188]
[1753647214108,3.47209468,3843.0,3842.9,2.80188]
[1753647214310,3.7159446,3843.0,3842.9,2.80188]
[1753647214808,4.40852747,3843.0,3842.9,2.80188]
[1753647216114,3.35895747,3843.0,3842.9,2.80188]
[1753647216313,3.87922747,3843.0,3842.9,2.80188]
[1753647216713,4.40852747,3843.0,3842.9,2.80188]
[1753647216915,4.16467755,3843.0,3842.9,2.80188]
[1753647217511,3.63537755,3843.0,3842.9,2.80188]
[1753647217908,4.16467755,3843.0,3842.9,2.80188]
[1753647218715,3.47209468,3843.0,3842.9,2.80188]
[1753647219811,2.73688,3841.4,3841.3,3.28653826]
[1753647220117,1.41605,3840.9,3840.8,0.5309]
[1753647220312,2.45659,3840.7,3840.6,1.3277]
[1753647220506,3.47241468,3840.7,3840.6,1.3277]
[1753647220716,3.47241468,3840.7,3840.3,1.8949]
[1753647220717,1.41612,3840.4,3840.3,1.8949]
[1753647220916,1.41612,3840.4,3840.3,1.4319]
[1753647220917,2.73702,3840.4,3840.3,1.4319]
[1753647221124,2.73703,3840.3,3840.0,0.5309]
[1753647221417,3.47245468,3840.3,3840.2,0.54912798]
[1753647221615,3.47245468,3840.3,3840.2,0.88292798]
[1753647223818,3.47245468,3840.3,3840.2,1.91312798]
[1753647225615,3.47245468,3840.3,3840.2,1.45012798]
[1753647225825,3.47245468,3840.3,3840.2,2.31262798]
[1753647225826,2.94315468,3840.3,3840.2,2.31262798]
[1753647226123,3.47245468,3840.3,3840.2,2.31262798]
[1753647226319,2.94315468,3840.3,3840.2,2.31262798]
[1753647227023,3.47245468,3840.3,3840.2,2.31262798]
[1753647227520,3.47245468,3840.3,3840.2,2.83327798]
[1753647227728,2.94315468,3840.3,3840.2,2.31262798]
[1753647228233,3.47245468,3840.3,3840.2,2.31262798]
[1753647228434,3.47245468,3840.3,3840.2,2.83327798]
[1753647228839,3.47245468,3840.3,3840.2,2.31262798]
[1753647229133,3.47245468,3840.3,3840.2,2.83327798]
[1753647231030,0.6255,3840.3,3840.2,2.83327798]
[1753647231230,0.52059,3840.6,3840.5,1.42159]
[1753647231534,1.84779,3840.6,3840.5,1.42159]
[1753647231935,1.84779,3840.6,3840.5,2.81499]
[1753647233234,1.10572468,3840.8,3840.7,2.81498]
[1753647233431,0.73542468,3840.8,3840.7,2.81498]
[1753647233837,1.10572468,3840.8,3840.7,2.81498]
[1753647234336,1.62628468,3840.8,3840.7,2.81498]
[1753647234536,2.16188468,3840.8,3840.7,2.81498]
[1753647234731,2.94308468,3840.8,3840.7,2.81498]
[1753647234936,3.47238468,3840.8,3840.7,2.81498]
[1753647236537,3.47238468,3840.8,3840.7,2.41548]
[1753647238535,3.47238468,3840.8,3840.7,2.83888]
[1753647239839,2.95182468,3840.8,3840.7,2.3315]
[1753647240638,3.47238468,3840.8,3840.7,1.9081]
[1753647240839,3.47238468,3840.8,3840.7,0.9051]
[1753647241037,2.8098,3840.5,3840.4,0.9051]
[1753647241243,26.8556,3840.5,3840.4,0.9051]
[1753647242534,1.44323,3840.3,3840.2,0.91536798]
[1753647242731,2.80983,3840.3,3840.2,1.44396798]
[1753647242936,2.80983,3840.3,3840.2,0.54682798]
[1753647243137,2.80983,3840.3,3840.2,0.92332798]
[1753647243940,2.80983,3840.3,3840.2,1.18742798]
[1753647244141,2.80983,3840.3,3840.2,1.92632798]
[1753647245739,2.80983,3840.3,3839.8,1.09781586]
[1753647245740,1.44329,3839.9,3839.8,1.09781586]
[1753647245940,3.54531468,3839.9,3839.8,1.09781586]
[1753647246546,3.54531468,3839.9,3839.8,1.54201586]
[1753647247045,3.54531468,3839.9,3839.8,2.06271586]
[1753647247250,3.54531468,3839.9,3839.8,2.62151586]
[1753647252251,3.54531468,3839.9,3839.8,1.24201586]
[1753647252446,1.3666,3839.4,3838.8,0.8676]
[1753647252746,1.16145,3838.7,3838.6,1.644]
[1753647252944,2.81005,3838.7,3838.6,1.9081]
[1753647253140,2.81005,3838.7,3838.6,0.9051]
[1753647253449,2.81005,3838.7,3838.6,0.3765]
[1753647253645,2.81005,3838.7,3838.6,0.9051]
[1753647253850,3.54547468,3838.7,3838.6,0.3765]
[1753647254252,3.54547468,3838.7,3838.6,0.9051]
[1753647255543,3.54547468,3838.7,3838.6,1.98476]
[1753647255851,3.02462468,3838.7,3838.6,2.42896]
[1753647256348,4.1673,3839.0,3838.9,1.19202]
[1753647256647,3.2078,3839.0,3838.9,2.85232]
[1753647257053,21.99852468,3839.7,3839.6,1.87943]
[1753647257249,22.70006524,3839.7,3839.6,2.85223]
[1753647257954,22.98206524,3839.7,3839.6,2.85223]
[1753647258151,23.26246524,3839.7,3839.6,2.85223]
[1753647258351,23.78317524,3839.7,3839.6,2.85223]
[1753647258655,24.59216524,3839.7,3839.6,2.85223]
[1753647259062,23.89062468,3839.7,3839.6,2.85223]
[1753647261557,23.89062468,3839.7,3839.6,2.42883]
[1753647262554,24.41133468,3839.7,3839.6,2.85223]
[1753647262853,2.80993,3839.6,3839.5,1.04933]
[1753647263051,3.02462468,3839.6,3839.5,2.42883]
[1753647263451,3.54535468,3839.6,3839.5,2.42883]
[1753647263756,3.02462468,3839.6,3839.5,2.42883]
[1753647263951,0.52078,3839.3,3839.2,1.16138]
[1753647264157,23.1412,3839.3,3839.2,1.68998]
[1753647264452,23.66197,3839.3,3839.2,1.68998]
[1753647264757,23.66197,3839.3,3839.2,2.42888]
[1753647265448,23.1412,3839.3,3839.2,2.42888]
[1753647265654,23.66197,3839.3,3839.2,2.42888]
[1753647266761,23.1412,3839.3,3839.2,2.42888]
[1753647267562,23.66197,3839.3,3839.2,2.42888]
[1753647269460,23.1412,3839.3,3839.2,2.42888]
[1753647270056,23.66197,3839.3,3839.2,2.42888]
[1753647272062,23.1412,3839.3,3839.2,2.42888]
[1753647272961,23.1412,3839.3,3839.2,2.85038]
[1753647273456,23.66197,3839.3,3839.2,2.85038]
[1753647273857,23.1412,3839.3,3839.2,2.85038]
[1753647275258,23.66197,3839.3,3839.2,2.85038]
[1753647275456,23.1412,3839.3,3839.2,2.85038]
[1753647278564,23.66197,3839.3,3839.2,2.85038]
[1753647278961,23.1412,3839.3,3839.2,2.85038]
[1753647280868,23.66197,3839.3,3839.2,2.85038]
[1753647281169,23.1412,3839.3,3839.2,2.85038]
[1753647282667,23.66197,3839.3,3839.2,2.85038]
[1753647283169,23.66197,3839.3,3839.2,2.42888]
[1753647284171,23.66197,3839.3,3839.2,0.96498]
[1753647284370,23.66197,3839.3,3839.2,1.49888]
[1753647284567,2.80997,3839.3,3839.2,2.14898]
[1753647284768,23.64197,3839.3,3839.2,2.44918]
[1753647285169,23.1212,3839.3,3839.2,2.44918]
[1753647285872,23.64197,3839.3,3839.2,2.44918]
[1753647286172,23.1212,3839.3,3839.2,2.44918]
[1753647289473,23.82814004,3839.3,3839.2,2.44918]
[1753647294275,24.34891004,3839.3,3839.2,2.44918]
[1753647294473,23.82814004,3839.3,3839.2,2.44918]
[1753647295768,24.34891004,3839.3,3839.2,2.44918]
[1753647295972,23.82814004,3839.3,3839.2,2.44918]
[1753647296180,24.34891004,3839.3,3839.2,2.44918]
[1753647296574,23.82814004,3839.3,3839.2,2.44918]
[1753647297779,24.34891004,3839.3,3839.2,2.44918]
[1753647298081,24.34891004,3839.3,3839.2,0.52078]
[1753647298275,24.34891004,3839.3,3839.2,1.06878]
[1753647299388,2.82431,3839.0,3838.9,1.86019]
[1753647299588,24.38973468,3839.0,3838.9,1.86019]
[1753647300286,2.82432,3838.9,3838.8,3.2078]
[1753647300588,2.82434,3838.8,3838.7,0.52084]
[1753647300788,23.65434,3838.8,3838.7,0.52084]
[1753647300992,1.42286,3838.7,3838.6,0.52085]
[1753647301192,2.82436,3838.7,3838.6,1.06885]
[1753647303490,2.82436,3838.7,3838.6,1.86025]
[1753647304188,3.54867628,3838.7,3838.6,1.86025]
[1753647304388,3.54847661,3838.7,3838.6,1.86025]
[1753647304586,3.02761661,3838.7,3838.6,2.13135]
[1753647304787,0.8424,3839.0,3838.9,0.52082]
[1753647304988,0.72413378,3839.0,3838.9,1.43712]
[1753647305290,21.55413378,3839.0,3838.9,1.43712]
[1753647305494,21.55413378,3839.0,3838.9,2.80192]
[1753647305790,20.83,3839.0,3838.9,2.80192]
[1753647307092,20.83,3839.2,3839.1,1.43709]
[1753647307289,20.83,3839.2,3839.1,2.80189]
[1753647307684,21.2168,3839.2,3839.1,2.80189]
[1753647307892,20.83,3839.2,3839.1,2.80189]
[1753647308282,21.2168,3839.2,3839.1,2.80189]
[1753647309295,21.9342,3839.2,3839.1,2.80189]
[1753647309594,22.2302,3839.2,3839.1,2.80189]
[1753647310091,22.7893,3839.2,3839.1,2.80189]
[1753647310793,1.9593,3839.2,3839.1,2.80189]
[1753647310993,22.7883,3839.2,3839.1,2.80189]
[1753647313591,22.2292,3839.2,3839.1,2.80189]
[1753647313786,1.4002,3839.2,3839.1,2.80189]
[1753647313992,0.3868,3839.4,3839.3,2.80187]
[1753647314194,21.2148,3839.4,3839.3,2.80187]
[1753647315095,22.4957812,3839.4,3839.3,2.80187]
[1753647315290,20.828,3839.4,3839.3,2.80187]
[1753647315893,0.73542468,3839.8,3839.5,0.9163]
[1753647316099,1.12222468,3839.8,3839.7,2.80181]
[1753647316299,0.7231964,3839.8,3839.7,2.80181]
[1753647316893,38.0741,3840.4,3839.7,2.80181]
[1753647316894,1.3576,3840.5,3840.4,0.7445]
[1753647317094,22.98570637,3840.5,3840.4,2.15292]
[1753647317494,23.37250637,3840.5,3840.4,2.15292]